bitfinex/quotes_SOLUSD_20250107
["timestamp","ask_amount","ask_price","bid_price","bid_amount"]
[1736222700218,11.4,217.16,217.07,13.4565]
[1736222700518,0.86354472,217.15,217.06,21.94]
[1736222700706,0.86354472,217.15,217.06,20.0]
[1736222700901,0.86354472,217.15,217.06,21.94]
[1736222705404,11.4,217.14,217.06,21.94]
[1736222706322,12.26362912,217.13,217.06,1.94]
[1736222707023,0.86362912,217.13,217.04,25.716884]
[1736222707204,0.86365709,217.16,217.04,25.716884]
[1736222709608,0.86365709,217.16,217.04,1.94]
[1736222709816,1.5235,217.15,217.04,1.94]
[1736222710018,0.86370789,217.14,217.04,1.94]
[1736222710440,7.8596,217.13,217.04,1.94]
[1736222710613,0.86370592,217.12,217.04,1.94]
[1736222711428,11.4,217.11,217.04,1.94]
[1736222712327,11.4,217.1,217.03,1.94]
[1736222715648,11.4,217.08,217.01,1.94]
[1736222718858,1.6483,217.07,216.99,20.0]
[1736222719128,1.6483,217.07,216.98,25.716884]
[1736222720268,11.4,217.06,216.98,25.716884]
[1736222722265,11.4,217.06,216.98,23.776884]
[1736222722565,11.4,217.06,216.98,25.716884]
[1736222728048,0.86386409,217.05,216.97,6.3218058]
[1736222728359,0.86386409,217.05,216.97,1.94]
[1736222728662,0.86386409,217.05,216.96,23.776884]
[1736222728842,0.86386409,217.05,216.96,25.716884]
[1736222730667,0.86386409,217.05,216.96,23.776884]
[1736222730852,0.86386409,217.05,216.96,25.716884]
[1736222731164,6.3027,217.06,216.96,25.716884]
[1736222731672,6.3027,217.06,216.96,23.776884]
[1736222731837,6.3027,217.06,216.96,25.716884]
[1736222732269,11.4,217.05,216.96,25.716884]
[1736222738272,11.4,217.03,216.96,25.716884]
[1736222742085,11.4,217.03,216.95,23.776884]
[1736222742305,11.4,217.03,216.95,25.716884]
[1736222744195,11.4,217.05,216.95,25.716884]
[1736222748905,11.4,217.04,216.95,25.716884]
[1736222749399,0.86398901,217.03,216.95,25.716884]
[1736222751205,11.4,217.04,216.95,25.716884]
[1736222753297,11.4,217.03,216.95,25.716884]
[1736222753900,11.4,217.03,216.93,23.776884]
[1736222754090,11.4,217.03,216.95,23.776884]
[1736222759209,11.4,217.02,216.95,23.776884]
[1736222760004,11.4,217.02,216.98,20.0]
[1736222760212,11.4,217.02,216.99,43.776884]
[1736222760381,1.6483,217.07,216.99,43.776884]
[1736222760803,11.4,217.1,216.99,49.58557702]
[1736222760997,11.4,217.1,216.99,53.96738282]
[1736222761192,6.5678,217.11,217.0,0.12549]
[1736222761384,11.4,217.12,217.02,23.776884]
[1736222763208,11.4,217.11,217.06,67.0]
[1736222765014,11.4,217.12,217.06,67.0]
[1736222765204,11.4,217.09,216.95,7.23023507]
[1736222765402,0.8639567,217.08,216.95,7.23023507]
[1736222765796,0.8639567,217.08,216.93,23.776884]
[1736222766113,1.6463,217.06,216.93,23.776884]
[1736222766306,17.498,217.04,216.93,23.776884]
[1736222766498,17.498,217.04,216.91,23.902374]
[1736222766911,0.8639786,217.03,216.92,1.94]
[1736222767295,0.8639786,217.03,216.93,23.776884]
[1736222768002,17.498,217.04,216.93,23.776884]
[1736222769432,13.57087556,217.04,216.93,23.776884]
[1736222771219,3.97287556,217.03,216.93,23.776884]
[1736222771516,3.97287556,217.03,216.95,23.776884]
[1736222773614,3.97287556,217.08,216.99,23.776884]
[1736222773816,6.3957,217.09,216.99,23.776884]
[1736222774020,6.3957,217.09,217.01,23.776884]
[1736222774202,6.3957,217.09,217.03,23.776884]
[1736222774407,1.6327,217.11,217.03,23.776884]
[1736222775010,1.6327,217.11,217.07,23.776884]
[1736222775639,1.6327,217.11,217.07,90.776884]
[1736222776219,3.97287556,217.13,217.07,90.776884]
[1736222778522,3.97287556,217.13,217.07,23.776884]
[1736222780243,6.3957,217.14,217.07,23.776884]
[1736222781531,6.3957,217.14,217.09,23.776884]
[1736222781908,6.3957,217.14,217.07,23.776884]
[1736222784935,6.3957,217.14,217.07,90.776884]
[1736222785544,6.3957,217.14,217.07,23.776884]
[1736222786323,10.36857556,217.14,217.07,23.776884]
[1736222786935,0.86351678,217.13,217.07,23.776884]
[1736222787249,0.86351678,217.13,217.05,23.776884]
[1736222790353,3.97287556,217.12,217.04,20.0]
[1736222790925,3.97287556,217.12,217.05,23.776884]
[1736222795462,3.97287556,217.11,217.05,23.776884]
[1736222798758,3.97287556,217.11,217.05,90.776884]
[1736222799459,3.97287556,217.11,217.05,23.776884]
[1736222801368,3.97287556,217.13,217.05,23.776884]
[1736222802566,3.97287556,217.13,217.05,90.776884]
[1736222802938,3.97287556,217.13,217.05,23.776884]
[1736222804143,3.97287556,217.15,217.09,23.776884]
[1736222805948,3.97287556,217.15,217.09,90.776884]
[1736222807366,1.6327,217.16,217.09,90.776884]
[1736222808965,3.97287556,217.17,217.09,90.776884]
[1736222813172,10.41947556,217.19,217.09,90.776884]
[1736222821751,10.41947556,217.19,217.09,23.776884]
[1736222823570,10.41947556,217.19,217.11,23.776884]
[1736222824288,37.21354598,217.2,217.11,23.776884]
[1736222824487,37.21354598,217.2,217.11,35.291684]
[1736222824688,33.24067042,217.2,217.15,23.776884]
[1736222825290,33.24067042,217.2,217.12,23.776884]
[1736222828197,33.24067042,217.2,217.16,23.776884]
[1736222828410,6.1731,217.24,217.18,23.776884]
[1736222829199,1.5463,217.26,217.18,23.776884]
[1736222829895,0.86300066,217.25,217.18,23.776884]
[1736222830086,0.86300066,217.25,217.16,1.94]
[1736222830284,1.5463,217.26,217.17,23.776884]
[1736222830487,6.6077,217.24,217.17,23.776884]
[1736222830799,0.86322902,217.23,217.17,23.776884]
[1736222831604,7.47092919,217.24,217.17,23.776884]
[1736222834404,3.97287556,217.23,217.17,23.776884]
[1736222835506,4.83609188,217.23,217.16,1.94]
[1736222836683,3.97287556,217.23,217.16,1.94]
[1736222838199,4.8361023,217.23,217.16,1.94]
[1736222838510,3.97287556,217.23,217.16,1.94]
[1736222839806,4.83610659,217.23,217.16,1.94]
[1736222840311,3.97287556,217.22,217.16,1.94]
[1736222844114,3.97287556,217.2,217.16,1.94]
[1736222844406,5.48107556,217.2,217.16,1.94]
[1736222846311,5.48107556,217.2,217.14,23.776884]
[1736222849114,3.97287556,217.19,217.14,23.776884]
[1736222852214,3.97287556,217.18,217.04,1.6308]
[1736222852428,3.97287556,217.18,217.07,1.94]
[1736222853115,3.97287556,217.18,217.08,23.776884]
[1736222855398,3.97287556,217.17,217.08,23.776884]
[1736222861210,3.97287556,217.19,217.08,23.776884]
[1736222862029,3.97287556,217.19,217.1,23.776884]
[1736222862412,3.97287556,217.18,217.11,1.94]
[1736222862614,3.97287556,217.18,217.12,23.776884]
[1736222863924,3.97287556,217.18,217.11,1.94]
[1736222864122,11.34023483,217.18,217.11,1.94]
[1736222865003,11.34023483,217.18,217.08,23.776884]
[1736222865203,11.34023483,217.18,217.08,25.716884]
[1736222865701,3.97287556,217.17,217.05,67.0]
[1736222865910,3.97287556,217.14,217.05,67.0]
[1736222866129,4.83651228,217.14,217.05,1.94]
[1736222866330,4.83651228,217.14,217.06,23.776884]
[1736222868433,4.83651228,217.14,217.04,23.776884]
[1736222868620,4.83651228,217.14,217.04,25.716884]
[1736222868814,10.08817556,217.11,216.98,7.23023507]
[1736222869014,10.08817556,217.11,217.01,23.776884]
[1736222869226,10.08817556,217.11,217.01,25.716884]
[1736222871818,3.97287556,217.1,217.03,23.776884]
[1736222872834,5.48327556,217.09,217.02,1.94]
[1736222873144,3.97287556,217.08,217.0,1.94]
[1736222873429,3.97287556,217.08,217.01,23.776884]
[1736222875841,3.97287556,217.08,217.01,90.776884]
[1736222876132,1.5104,217.09,217.01,90.776884]
[1736222878940,1.5104,217.09,217.01,23.776884]
[1736222879543,5.48327556,217.09,217.03,23.776884]
[1736222882648,5.48327556,217.09,217.02,1.94]
[1736222882848,3.97287556,217.07,216.96,20.0]
[1736222883041,3.97287556,217.07,216.99,1.94]
[1736222885128,3.97287556,217.07,216.97,25.716884]
[1736222885340,0.86390737,217.06,216.97,25.716884]
[1736222888162,11.78957556,217.04,216.94,67.0]
[1736222888358,3.97287556,217.02,216.95,1.94]
[1736222889358,3.97287556,217.02,216.96,23.776884]
[1736222891642,3.97287556,217.02,216.95,23.776884]
[1736222894062,3.97287556,217.01,216.95,23.776884]
[1736222900077,3.97287556,217.02,216.95,23.776884]
[1736222906189,3.97287556,217.01,216.95,23.776884]
[1736222912005,3.97287556,217.02,216.95,23.776884]
[1736222914425,3.97287556,217.02,216.96,23.776884]
[1736222914833,3.97287556,217.02,216.96,90.776884]
[1736222918214,3.97287556,217.01,216.96,90.776884]
[1736222918716,3.97287556,217.01,216.96,23.776884]
[1736222921504,1.5373,217.04,217.0,23.776884]
[1736222922109,1.5373,217.04,216.96,23.776884]
[1736222922500,0.86407274,217.03,216.96,23.776884]
[1736222924237,3.97287556,217.02,216.94,1.94]
[1736222924891,3.97287556,217.02,216.95,23.776884]
[1736222930097,3.97287556,217.03,216.95,23.776884]
[1736222931004,3.97287556,217.03,216.97,23.776884]
[1736222931502,3.97287556,217.03,216.95,23.776884]
[1736222934526,3.97287556,217.03,216.98,23.776884]
[1736222935127,3.97287556,217.03,216.96,23.776884]
[1736222936145,1.5373,217.04,216.96,23.776884]
[1736222936434,1.5373,217.04,216.95,23.776884]
[1736222938139,1.5373,217.04,216.97,23.776884]
[1736222941046,1.5373,217.04,216.95,23.776884]
[1736222942142,3.97287556,217.03,216.95,23.776884]
[1736222942936,3.97287556,217.03,216.97,23.776884]
[1736222946244,3.97287556,217.03,216.94,23.776884]
[1736222946540,3.97287556,217.03,216.97,23.776884]
[1736222947042,3.97287556,217.03,216.97,90.776884]
[1736222948234,3.97287556,217.03,216.97,23.776884]
[1736222951246,3.97287556,217.03,216.97,90.776884]
[1736222952243,3.97287556,217.03,216.97,23.776884]
[1736222955146,3.97287556,217.03,216.97,90.776884]
[1736222956447,3.97287556,217.02,216.95,1.94]
[1736222956818,3.97287556,217.02,216.96,23.776884]
[1736222957342,0.86405098,217.01,216.94,1.94]
[1736222958233,3.97287556,217.02,216.94,1.94]
[1736222958548,3.97287556,217.02,216.95,23.776884]
[1736222959936,3.97287556,217.01,216.95,23.776884]
[1736222961127,3.97287556,217.01,216.96,1.94]
[1736222963148,10.23057556,217.03,216.97,23.776884]
[1736222965758,10.23057556,217.03,216.97,25.716884]
[1736222966953,3.97287556,217.03,216.97,25.716884]
[1736222968939,6.064,217.08,216.97,37.239084]
[1736222969259,6.064,217.08,217.0,23.776884]
[1736222969762,0.86378408,217.07,216.98,20.0]
[1736222970460,6.064,217.08,216.99,23.776884]
[1736222971946,3.97287556,217.07,216.98,23.776884]
[1736222972655,3.97287556,217.07,217.0,23.776884]
[1736222975761,3.97287556,217.07,216.98,23.776884]
[1736222976363,1.6654,217.05,216.96,1.94]
[1736222976559,0.86402201,217.04,216.96,1.94]
[1736222977167,0.86402201,217.04,216.97,23.776884]
[1736222980669,2.52940602,217.05,216.97,23.776884]
[1736222980965,3.97287556,217.04,216.97,23.776884]
[1736222982267,3.97287556,217.04,216.94,68.84156426]
[1736222982468,3.97287556,217.04,216.95,25.716884]
[1736222984168,3.97287556,217.02,216.96,1.94]
[1736222984672,3.97287556,217.02,216.95,1.94]
[1736222985774,0.8640834,217.01,216.95,1.94]
[1736222986757,3.97287556,217.02,216.95,1.94]
[1736222987568,3.97287556,217.02,216.94,23.776884]
[1736222987757,3.97287556,217.02,216.94,25.716884]
[1736222989893,3.97287556,217.01,216.94,25.716884]
[1736222991262,3.97287556,217.01,216.94,23.776884]
[1736222991446,3.97287556,217.01,216.94,25.716884]
[1736222995976,3.97287556,217.03,216.94,25.716884]
[1736222999176,3.97287556,217.03,216.94,92.716884]
[1736223001882,3.97287556,217.02,216.94,92.716884]
[1736223004185,0.86407766,217.01,216.94,25.716884]
[1736223007887,3.97287556,217.0,216.94,25.716884]
[1736223009182,0.86411289,217.04,216.94,25.716884]
[1736223009183,3.97287556,216.99,216.94,25.716884]
[1736223009383,5.47737556,216.99,216.94,1.94]
[1736223009584,4.83711063,216.98,216.9,20.0]
[1736223009762,4.83711063,216.98,216.9,21.94]
[1736223010084,4.83711063,216.98,216.91,23.776884]
[1736223010284,3.97287556,216.95,216.85,1.82025603]
[1736223010454,3.97287556,216.95,216.84,7.23023507]
[1736223010455,3.97287556,216.95,216.88,1.94]
[1736223011290,0.86423507,216.98,216.88,1.94]
[1736223011291,3.97287556,216.94,216.89,23.776884]
[1736223013104,3.97287556,216.94,216.88,23.776884]
[1736223013600,3.97287556,216.93,216.85,23.776884]
[1736223013805,3.97287556,216.93,216.88,23.776884]
[1736223016980,3.97287556,216.98,216.88,23.776884]
[1736223017184,4.8371473,216.98,216.88,23.776884]
[1736223019896,4.8371473,216.98,216.88,90.776884]
[1736223022781,3.97287556,216.97,216.88,90.776884]
[1736223024800,3.97287556,216.97,216.88,23.776884]
[1736223027805,3.97287556,216.98,216.91,23.776884]
[1736223028000,3.97287556,216.98,216.89,23.776884]
[1736223028592,3.97287556,216.98,216.88,23.776884]
[1736223029507,0.86425447,216.97,216.88,23.776884]
[1736223030609,4.83720312,216.98,216.88,23.776884]
[1736223031812,3.97287556,216.97,216.88,23.776884]
[1736223032203,23.97287556,216.96,216.88,23.776884]
[1736223032509,23.97287556,216.96,216.89,1.94]
[1736223032918,3.97287556,216.96,216.89,1.94]
[1736223036026,3.97287556,216.96,216.9,23.776884]
[1736223037822,3.97287556,216.95,216.9,23.776884]
[1736223042922,3.97287556,216.95,216.9,90.776884]
[1736223043795,3.97287556,216.98,216.9,90.776884]
[1736223046596,3.97287556,216.98,216.9,92.716884]
[1736223049812,3.97287556,216.97,216.9,92.716884]
[1736223052220,20.0,216.96,216.9,90.776884]
[1736223052433,20.0,216.96,216.88,1.94]
[1736223052725,20.0,216.96,216.89,23.776884]
[1736223054825,3.97287556,216.95,216.88,1.94]
[1736223055015,3.97287556,216.95,216.89,23.776884]
[1736223061525,3.97287556,216.94,216.87,1.94]
[1736223061728,3.97287556,216.94,216.88,23.776884]
[1736223062309,3.97287556,216.94,216.83,23.776884]
[1736223062512,3.97287556,216.94,216.87,23.776884]
[1736223067734,3.97287556,216.93,216.87,23.776884]
[1736223072242,3.97287556,216.91,216.82,80.32217635]
[1736223072442,3.97287556,216.91,216.83,1.94]
[1736223072743,3.97287556,216.91,216.84,23.776884]
[1736223076226,0.86444598,216.9,216.79,18.80452459]
[1736223076424,0.86444598,216.9,216.8,1.94]
[1736223076623,0.86444598,216.9,216.81,23.776884]
[1736223077033,0.86444598,216.9,216.8,1.94]
[1736223077233,0.86456567,216.91,216.8,1.94]
[1736223079155,0.86456567,216.91,216.81,23.776884]
[1736223079748,3.97287556,216.9,216.81,23.776884]
[1736223083834,3.97287556,216.9,216.81,21.776884]
[1736223085855,3.97287556,216.89,216.81,21.776884]
[1736223086351,3.97287556,216.89,216.8,23.776884]
[1736223086559,3.97287556,216.89,216.83,23.776884]
[1736223091763,3.97287556,216.88,216.83,23.776884]
[1736223092658,3.97287556,216.88,216.86,23.776884]
[1736223095977,1.5138,216.92,216.83,23.776884]
[1736223096565,3.97287556,216.93,216.83,23.776884]
[1736223097368,3.97287556,216.93,216.85,23.776884]
[1736223099073,3.97287556,216.94,216.88,23.776884]
[1736223099444,3.97287556,216.94,216.85,23.776884]
[1736223102673,3.97287556,216.94,216.84,11.5291]
[1736223102674,3.97287556,216.94,216.89,23.776884]
[1736223103478,3.97287556,216.94,216.85,23.776884]
[1736223106476,3.97287556,216.94,216.9,23.776884]
[1736223106977,3.97287556,216.94,216.89,1.94]
[1736223109768,25.31280222,216.95,216.89,1.94]
[1736223109965,25.31280222,216.95,216.92,23.776884]
[1736223110592,25.31280222,216.95,216.9,23.776884]
[1736223111175,3.97287556,216.96,216.9,23.776884]
[1736223113488,3.97287556,216.96,216.93,23.776884]
[1736223113996,3.97287556,216.96,216.9,23.776884]
[1736223115877,5.58127556,216.97,216.9,23.776884]
[1736223116989,5.58127556,216.97,216.9,90.776884]
[1736223120689,5.58127556,216.97,216.9,23.776884]
[1736223123696,5.58127556,216.97,216.9,90.776884]
[1736223124304,1.6084,216.97,216.9,90.776884]
[1736223124479,3.97287556,216.99,216.9,23.776884]
[1736223127399,3.97287556,216.99,216.92,23.776884]
[1736223127799,3.97287556,217.01,216.92,23.776884]
[1736223127986,3.97287556,217.01,216.9,23.776884]
[1736223130902,3.97287556,217.01,216.94,23.776884]
[1736223131491,3.97287556,217.01,216.9,23.776884]
[1736223133601,3.97287556,217.0,216.9,23.776884]
[1736223134406,3.97287556,216.99,216.95,23.776884]
[1736223134997,3.97287556,217.01,216.9,23.776884]
[1736223137985,3.97287556,217.0,216.95,23.776884]
[1736223141210,3.97287556,216.99,216.9,23.776884]
[1736223144202,3.97287556,217.01,216.94,23.776884]
[1736223144910,3.97287556,217.01,216.93,23.776884]
[1736223146390,1.6029,217.02,216.93,23.776884]
[1736223147824,1.6029,217.02,216.98,23.776884]
[1736223148211,1.6029,217.02,216.97,23.776884]
[1736223157232,1.6029,217.02,216.97,90.776884]
[1736223160831,1.6029,217.02,216.97,23.776884]
[1736223169825,1.6029,217.02,216.97,90.776884]
[1736223170238,3.97287556,217.04,216.97,90.776884]
[1736223172250,0.86390024,217.03,216.97,90.776884]
[1736223172437,5.48147556,217.01,216.89,1.6247]
[1736223172636,5.48147556,217.01,216.88,17.99231798]
[1736223172637,11.27646087,217.0,216.88,7.23023507]
[1736223172836,11.27646087,217.0,216.9,1.94]
[1736223173655,11.27646087,217.0,216.91,23.776884]
[1736223175436,11.27646087,217.0,216.91,90.776884]
[1736223175726,10.41227556,217.0,216.91,90.776884]
[1736223176934,10.41227556,217.0,216.91,23.776884]
[1736223178557,3.97287556,216.99,216.91,23.776884]
[1736223179954,3.97287556,216.99,216.94,23.776884]
[1736223180440,3.97287556,216.99,216.91,23.776884]
[1736223183354,3.97287556,216.99,216.93,23.776884]
[1736223183940,3.97287556,216.99,216.91,23.776884]
[1736223184656,3.97287556,216.98,216.91,23.776884]
[1736223186966,3.97287556,216.98,216.93,23.776884]
[1736223190573,6.4394,217.0,216.93,23.776884]
[1736223190574,3.97287556,216.99,216.93,23.776884]
[1736223192156,3.97287556,216.99,216.91,23.776884]
[1736223192365,3.97287556,216.95,216.83,13.0947]
[1736223192671,3.97287556,216.95,216.84,1.94]
[1736223192862,3.97287556,216.95,216.85,23.776884]
[1736223196241,3.97287556,216.95,216.84,23.776884]
[1736223196467,5.49227556,216.95,216.85,1.94]
[1736223196768,3.97287556,216.94,216.85,1.94]
[1736223200667,1.5194,216.95,216.85,1.94]
[1736223200855,1.5194,216.95,216.88,23.776884]
[1736223210265,1.5194,216.95,216.88,25.716884]
[1736223210950,1.5194,216.95,216.88,23.776884]
[1736223211455,3.97287556,216.94,216.88,23.776884]
[1736223211951,0.8643463,216.93,216.87,1.94]
[1736223212261,3.97287556,216.92,216.84,23.776884]
[1736223212573,0.86453066,216.91,216.86,23.776884]
[1736223214069,0.86453066,216.91,216.84,23.776884]
[1736223215480,3.97287556,216.92,216.84,23.776884]
[1736223216269,3.97287556,216.92,216.82,23.776884]
[1736223216459,3.97287556,216.92,216.84,1.94]
[1736223217488,3.97287556,216.91,216.84,1.94]
[1736223217858,0.86446129,216.9,216.84,1.94]
[1736223218057,0.86456155,216.91,216.84,1.94]
[1736223218253,3.97287556,216.92,216.84,1.94]
[1736223219604,3.97287556,216.92,216.82,23.776884]
[1736223219765,3.97287556,216.92,216.84,23.776884]
[1736223222766,0.86451078,216.91,216.84,23.776884]
[1736223223490,3.97287556,216.9,216.84,23.776884]
[1736223226283,3.97287556,216.9,216.83,1.94]
[1736223226673,3.97287556,216.9,216.84,23.776884]
[1736223227386,3.97287556,216.9,216.81,23.776884]
[1736223227689,3.97287556,216.9,216.84,23.776884]
[1736223229493,3.97287556,216.89,216.84,23.776884]
[1736223230689,3.97287556,216.89,216.8,23.776884]
[1736223230894,3.97287556,216.89,216.81,1.94]
[1736223235495,3.97287556,216.92,216.81,1.94]
[1736223235668,0.86457078,216.91,216.81,1.94]
[1736223237288,0.86457078,216.91,216.8,23.776884]
[1736223237592,0.86457078,216.91,216.83,23.776884]
[1736223238782,1.5753,216.9,216.83,23.776884]
[1736223241499,3.97287556,216.89,216.83,23.776884]
[1736223242397,4.83741697,216.89,216.83,23.776884]
[1736223247399,3.97287556,216.88,216.83,23.776884]
[1736223248082,4.8375072,216.88,216.83,23.776884]
[1736223249088,3.97287556,216.88,216.83,23.776884]
[1736223253514,3.97287556,216.87,216.83,23.776884]
[1736223256284,0.86461946,216.86,216.72,7.23023507]
[1736223256484,3.97287556,216.85,216.77,1.94]
[1736223256706,3.97287556,216.85,216.78,23.776884]
[1736223259716,4.83761636,216.85,216.78,23.776884]
[1736223260615,3.97287556,216.85,216.78,23.776884]
[1736223262114,5.61127556,216.84,216.75,20.0]
[1736223262322,5.61127556,216.84,216.76,1.94]
[1736223263220,0.86481184,216.83,216.76,1.94]
[1736223264108,5.61127556,216.84,216.76,1.94]
[1736223265422,3.97287556,216.83,216.76,1.94]
[1736223271532,1.6384,216.84,216.76,1.94]
[1736223274336,1.6384,216.84,216.77,23.776884]
[1736223274511,3.97287556,216.86,216.77,23.776884]
[1736223275233,3.97287556,216.86,216.77,35.309584]
[1736223275625,3.97287556,216.86,216.78,0.12549]
[1736223277432,5.53237556,216.89,216.82,23.776884]
[1736223278142,5.53237556,216.89,216.78,23.902374]
[1736223279632,5.53237556,216.89,216.78,25.74436687]
[1736223280938,5.53237556,216.89,216.81,23.776884]
[1736223281511,5.53237556,216.89,216.79,23.776884]
[1736223283411,1.5595,216.89,216.79,23.776884]
[1736223284108,3.97287556,216.91,216.8,0.12549]
[1736223284308,3.97287556,216.92,216.82,20.0]
[1736223284514,3.97287556,216.92,216.85,67.0]
[1736223284716,3.97287556,216.92,216.86,23.776884]
[1736223284933,3.97287556,216.92,216.83,1.94]
[1736223286216,3.97287556,216.95,216.85,23.776884]
[1736223286921,3.97287556,216.95,216.84,23.776884]
[1736223287741,3.97287556,216.95,216.87,43.776884]
[1736223288051,1.5455,216.96,216.91,23.776884]
[1736223288342,1.5455,216.96,216.93,23.776884]
[1736223289034,3.97287556,216.99,216.93,23.776884]
[1736223289835,3.97287556,217.0,216.93,23.776884]
[1736223290046,3.97287556,217.01,216.93,23.776884]
[1736223290340,2.46552481,217.03,216.93,23.776884]
[1736223290341,3.97287556,217.02,216.93,23.776884]
[1736223290515,3.97287556,217.05,216.93,23.776884]
[1736223291112,3.97287556,217.05,216.96,20.0]
[1736223291318,3.97287556,217.06,216.97,23.776884]
[1736223291518,4.83673601,217.06,216.99,23.776884]
[1736223291734,4.83673601,217.06,217.0,1.92]
[1736223292248,4.83673601,217.06,216.98,67.0]
[1736223292553,4.83673601,217.06,216.96,1.92]
[1736223293043,4.83673601,217.06,216.97,23.776884]
[1736223295345,3.97287556,217.05,216.97,23.776884]
[1736223295544,0.8640801,217.04,216.97,23.776884]
[1736223301053,3.97287556,217.05,216.97,23.776884]
[1736223301246,0.86395543,217.04,216.97,23.776884]
[1736223301419,3.97287556,217.03,216.97,23.776884]
[1736223302324,0.86406558,217.02,216.9,23.776884]
[1736223302529,5.53467556,217.01,216.92,23.776884]
[1736223305348,3.97287556,217.0,216.94,23.776884]
[1736223305850,3.97287556,217.0,216.92,23.776884]
[1736223307546,3.97287556,216.98,216.86,11.5278]
[1736223307742,3.97287556,216.96,216.87,1.92]
[1736223307950,3.97287556,216.96,216.88,23.776884]
[1736223308141,3.97287556,216.96,216.9,23.776884]
[1736223313362,3.97287556,216.99,216.9,23.776884]
[1736223313563,0.86424893,216.98,216.9,23.776884]
[1736223314343,0.86424893,216.98,216.9,90.776884]
[1736223315556,3.97287556,216.97,216.9,90.776884]
[1736223315762,2.45959865,216.96,216.89,1.92]
[1736223315944,2.45959865,216.96,216.9,23.776884]
[1736223317067,2.45959865,216.96,216.88,1.92]
[1736223317636,1.5952,216.96,216.88,1.92]
[1736223317861,1.5952,216.96,216.89,23.776884]
[1736223326661,0.86427273,216.95,216.89,23.776884]
[1736223326864,4.83714829,216.95,216.9,1.94]
[1736223327171,4.83714829,216.95,216.89,1.94]
[1736223328771,3.97287556,216.95,216.9,23.776884]
[1736223331254,3.97287556,216.94,216.9,23.776884]
[1736223333373,3.97287556,216.93,216.84,20.0]
[1736223333686,3.97287556,216.95,216.89,1.94]
[1736223337248,3.97287556,216.94,216.9,23.776884]
[1736223343377,3.97287556,216.93,216.9,23.776884]
[1736223344084,2.45959872,216.96,216.89,1.94]
[1736223344085,3.97287556,216.94,216.89,23.776884]
[1736223344873,3.97287556,216.93,216.89,23.776884]
[1736223345081,3.97287556,216.91,216.85,1.94]
[1736223345654,0.86455897,216.9,216.8,20.0]
[1736223345855,0.86455897,216.9,216.81,1.94]
[1736223347283,0.86455897,216.9,216.77,11.5324]
[1736223347284,1.583,216.88,216.77,11.5324]
[1736223347490,1.583,216.88,216.75,7.23023507]
[1736223347491,4.83761116,216.87,216.78,1.94]
[1736223347876,4.83761116,216.87,216.79,23.776884]
[1736223348052,3.97287556,216.86,216.8,1.94]
[1736223348257,0.86480724,216.85,216.8,1.94]
[1736223348787,0.86480724,216.85,216.81,23.776884]
[1736223348966,0.86480724,216.85,216.8,1.94]
[1736223349499,3.97287556,216.84,216.77,23.776884]
[1736223349707,3.97287556,216.83,216.79,23.776884]
[1736223351914,3.97287556,216.83,216.77,23.776884]
[1736223352205,3.97287556,216.83,216.79,23.776884]
[1736223355304,3.97287556,216.82,216.79,23.776884]
[1736223361405,3.97287556,216.83,216.79,23.776884]
[1736223367229,3.97287556,216.82,216.79,23.776884]
[1736223371422,3.97287556,216.83,216.79,23.776884]
[1736223376227,3.97287556,216.82,216.79,23.776884]
[1736223377931,3.97287556,216.82,216.77,23.776884]
[1736223378129,6.0292,216.87,216.77,23.776884]
[1736223378130,4.8377485,216.81,216.77,23.776884]
[1736223379124,3.97287556,216.81,216.77,23.776884]
[1736223381133,3.97287556,216.81,216.77,1.94]
[1736223382331,3.97287556,216.85,216.77,1.94]
[1736223382531,0.8648849,216.84,216.77,1.94]
[1736223387862,0.8648849,216.84,216.78,23.776884]
[1736223388363,3.97287556,216.83,216.78,23.776884]
[1736223390658,3.97287556,216.83,216.77,23.776884]
[1736223393864,0.86486907,216.82,216.77,23.776884]